{"text_format":"3","workbook":"xlsx","n_sheets":8,"sheets":["Juhised","Rutiinsed püsikliendid","Juhututtavad","Potentsiaalsed võimalused","Q1 võrguleping","Q2 võrguleping","Q3 võrguleping","Q4 võrguleping"],"not_rendered":{"defined_names":7},"read":"whole","date_system":"1900"}

{"sheet":"Juhised","index":0,"n_rows":17,"n_cols":5,"rows_kept":17,"merged":[[0,0,0,2],[1,1,1,6],[2,1,2,6],[3,1,3,6],[4,1,4,6],[5,1,5,6],[6,1,6,6],[7,1,7,6],[8,1,8,6],[9,1,9,6],[10,1,10,6],[11,1,11,6]]}
["Ühenduse võtmise jälgur",null,null,"Juhised"]
[null,"1. Otsustage, millisesse kategooriasse teie kontakt kuulub:"]
[null,"• Rutiinsed püsikliendid – inimesed, kellega soovite regulaarselt suhelda;"]
[null,"• Juhututtavad – inimesed, kellega soovite paar korda aastas ühendust võtta;"]
[null,"• Potentsiaalsed võimalused – inimesed/ettevõtted, keda soovite failis hoida, et võtta sobival ajal ühendust"]
[null,"2. Avage vastav töölehesakk."]
[null,"3. Sisestage nende teave (lahtris uue rea loomiseks vajutage Windowsis klahvikombinatsiooni Alt+Enter või Maci arvutis klahvikombinatsiooni Option+Return)."]
[null,"Klõpsake siin, et saada uue rea loomise juhised Exceli mobiilirakenduste kohta."]
[null,"4. Kustutage veerus Järeltegevuse kuupäev näidiskuupäev/-valem, sisestage kuupäev, millal soovite ühendust võtta \nja seejärel vajutage sisestusklahvi (Enter)."]
[null,"5. Kui kuupäev on kohe käes, kuvatakse veerg Järeltegevuse kuupäev punasena, kollasena, kui see on lähenemas ja \nrohelisena, kui on piisavalt aega."]
[null,"6. Järeltegevuse kuupäeva lähenedes muutub veeru värv vastavalt."]
[null,"7. Kui olete kontaktiga ühendust võtnud, tippige veergu Valmis? sõna JAH. See muudab kuupäeva halliks. "]
[null,"8. Kui soovite nendega uuesti ühendust võtta, asendage sõna JAH sõnaga EI ning tippige uus Järeltegevuse kuupäev."]
[null,null,"Punane","Kollane","Roheline"]
[null,"Rutiinsed püsikliendid","1–3 päeva pärast","4–7 päeva pärast","8–14 päeva pärast"]
[null,"Juhututtavad","1–7 päeva pärast","8–45 päeva pärast","46–90+ päeva pärast"]
[null,"Potentsiaalsed võimalused","1–14 päeva pärast","15–60 päeva pärast","60–120+ päeva pärast"]

{"sheet":"Rutiinsed püsikliendid","index":1,"n_rows":7,"n_cols":8,"rows_kept":7,"merged":[[0,0,0,2]]}
["Ühenduse võtmise jälgur",null,null,"Rutiinsed püsikliendid"]
[]
["Nimi","Ettevõte","Kontaktteave","Kus me kohtusime","Märkmed","Järeltegevuse kuupäev","Valmis","Märkmed vestlusest"]
["Rauno Leok","Veskipoisid OÜ","Projektijuht\nrauno@veskipoisid.com\n(+372) 555 0134\nwww.veskipoisid.ee\nlinkedin.com/in/rauno-leok","Müügimess 2010","Küsida tütar Anu kohta ja kuidas ümberkujundamine läheb. Talle ei meeldi suured rahvamassid ja vürtsikas toit.",{"$f":"TODAY()+8","v":"2021-07-20"},"EI"]
["Nimi","Ettevõtte nimi","Ametinimetus\nMeiliaadress\nTelefoninumber\nVeebisait\nSuhtlusprofiili lingid\n","Asukoht","Lisage märkmeid selle kohta, mida soovite selle inimese kohta meeles pidada – kus te kohtusite, millest te rääkisite, millest tahate temaga järgmisel kohtumisel rääkida jne.",{"$f":"TODAY()-3","v":"2021-07-09"},"JAH"]
["Nimi","Ettevõtte nimi","Ametinimetus\nMeiliaadress\nTelefoninumber\nVeebisait\nSuhtlusprofiili lingid\n","Asukoht","Lisage märkmeid selle kohta, mida soovite selle inimese kohta meeles pidada – kus te kohtusite, millest te rääkisite, millest tahate temaga järgmisel kohtumisel rääkida jne.",{"$f":"TODAY()+-3","v":"2021-07-09"},"EI"]
["Nimi","Ettevõtte nimi","Ametinimetus\nMeiliaadress\nTelefoninumber\nVeebisait\nSuhtlusprofiili lingid\n","Asukoht","Lisage märkmeid selle kohta, mida soovite selle inimese kohta meeles pidada – kus te kohtusite, millest te rääkisite, millest tahate temaga järgmisel kohtumisel rääkida jne.",{"$f":"TODAY()+6","v":"2021-07-18"},"EI"]

{"sheet":"Juhututtavad","index":2,"n_rows":7,"n_cols":8,"rows_kept":7,"merged":[[0,0,0,2]]}
["Ühenduse võtmise jälgur",null,null,"Juhututtavad"]
[]
["Nimi","Ettevõte","Kontaktteave","Kus me kohtusime","Märkmed","Järeltegevuse kuupäev","Valmis","Märkmed vestlusest"]
["Rauno Leok","Veskipoisid OÜ","Ressursijuht\nrauno@veskipoisid.com\n(+372) 555 0123\nwww.veskipoisid.ee\nlinkedin.com/in/rauno-leok","Puhkus Tartus 2016","Kasulik nii kontakti värbamiseks kui ka turundusega seotud küsimuste jaoks",{"$f":"TODAY()+90","v":"2021-10-10"},"EI"]
["Nimi","Ettevõtte nimi","Ametinimetus\nMeiliaadress\nTelefoninumber\nVeebisait\nSuhtlusprofiili lingid\n","Asukoht","Lisage märkmeid selle kohta, mida soovite selle inimese kohta meeles pidada – kus te kohtusite, millest te rääkisite, millest tahate temaga järgmisel kohtumisel rääkida jne.",{"$f":"TODAY()-3","v":"2021-07-09"},"JAH"]
["Nimi","Ettevõtte nimi","Ametinimetus\nMeiliaadress\nTelefoninumber\nVeebisait\nSuhtlusprofiili lingid\n","Asukoht","Lisage märkmeid selle kohta, mida soovite selle inimese kohta meeles pidada – kus te kohtusite, millest te rääkisite, millest tahate temaga järgmisel kohtumisel rääkida jne.",{"$f":"TODAY()+-3","v":"2021-07-09"},"EI"]
["Nimi","Ettevõtte nimi","Ametinimetus\nMeiliaadress\nTelefoninumber\nVeebisait\nSuhtlusprofiili lingid\n","Asukoht","Lisage märkmeid selle kohta, mida soovite selle inimese kohta meeles pidada – kus te kohtusite, millest te rääkisite, millest tahate temaga järgmisel kohtumisel rääkida jne.",{"$f":"TODAY()+40","v":"2021-08-21"},"EI"]

{"sheet":"Potentsiaalsed võimalused","index":3,"n_rows":7,"n_cols":8,"rows_kept":7,"merged":[[0,0,0,2]]}
["Ühenduse võtmise jälgur",null,null,"Potentsiaalsed võimalused"]
[]
["Nimi","Ettevõte","Kontaktteave","Kus me kohtusime","Märkmed","Järeltegevuse kuupäev","Valmis","Märkmed vestlusest"]
["Rauno Leok","Vabakutseline","Kujundaja\nkeegi@example.com\n(+372) 555 0123\nexample.com\nlinkedin.com/in/rauno-leok","Poja koolilõpetamine 2016","Hiljuti kooli lõpetanud, väga andekas. Võib olla kasulik tulevaste klientide jaoks.",{"$f":"TODAY()+89","v":"2021-10-09"},"EI"]
["Nimi","Ettevõtte nimi","Ametinimetus\nMeiliaadress\nTelefoninumber\nVeebisait\nSuhtlusprofiili lingid\n","Asukoht","Lisage märkmeid selle kohta, mida soovite selle inimese kohta meeles pidada – kus te kohtusite, millest te rääkisite, millest tahate temaga järgmisel kohtumisel rääkida jne.",{"$f":"TODAY()-3","v":"2021-07-09"},"JAH"]
["Nimi","Ettevõtte nimi","Ametinimetus\nMeiliaadress\nTelefoninumber\nVeebisait\nSuhtlusprofiili lingid\n","Asukoht","Lisage märkmeid selle kohta, mida soovite selle inimese kohta meeles pidada – kus te kohtusite, millest te rääkisite, millest tahate temaga järgmisel kohtumisel rääkida jne.",{"$f":"TODAY()+-3","v":"2021-07-09"},"EI"]
["Nimi","Ettevõtte nimi","Ametinimetus\nMeiliaadress\nTelefoninumber\nVeebisait\nSuhtlusprofiili lingid\n","Asukoht","Lisage märkmeid selle kohta, mida soovite selle inimese kohta meeles pidada – kus te kohtusite, millest te rääkisite, millest tahate temaga järgmisel kohtumisel rääkida jne.",{"$f":"TODAY()+30","v":"2021-08-11"},"EI"]

{"sheet":"Q1 võrguleping","index":4,"n_rows":20,"n_cols":6,"rows_kept":20,"merged":[[0,0,0,3],[2,0,2,3],[4,0,4,3],[14,5,17,5],[18,0,18,3]]}
["Võrgu laiendamise plaan"]
["Juhised"]
["Kirjutage, kuidas kavatsete oma võrku selles kvartalis laiendada (nt teha rohkem telefonikõnesid, reisida rohkem jne). Iga kord, kui saate uue kontakti, muutke tegelike loodud kontaktide arvu, et hoida silma peal ja vaadata, kui lähedal te oma eesmärgi saavutamisele olete."]
[]
["Kuidas kavatsen oma võrku selles kvartalis laiendada?"]
["1. Teen rohkem telefonikõnesid"]
["2. Reisin rohkem"]
[]
[]
[]
[]
[]
[]
["Kontaktide eesmärk kvartalis","Tähtaeg","Tegelik kvartalis loodud kontaktide arv","Tulemused"]
[20,{"$f":"TODAY()","v":"2021-07-12"},12,{"$f":"IF(tblGoals[[#This Row],[Kontaktide eesmärk kvartalis]]>0,tblGoals[[#This Row],[Tegelik kvartalis loodud kontaktide arv]]/tblGoals[[#This Row],[Kontaktide eesmärk kvartalis]],\"\")","v":{"v":0.6,"d":"60%"}},null,"0–25%\n26–50%\n51–75%\n76–100%\n\nVärv muutub vastavalt saavutatud protsendile"]
[{"$nulls":3},{"$f":"IF(tblGoals[[#This Row],[Kontaktide eesmärk kvartalis]]>0,tblGoals[[#This Row],[Tegelik kvartalis loodud kontaktide arv]]/tblGoals[[#This Row],[Kontaktide eesmärk kvartalis]],\"\")","v":""}]
[{"$nulls":3},{"$f":"IF(tblGoals[[#This Row],[Kontaktide eesmärk kvartalis]]>0,tblGoals[[#This Row],[Tegelik kvartalis loodud kontaktide arv]]/tblGoals[[#This Row],[Kontaktide eesmärk kvartalis]],\"\")","v":""}]
[]
["Tulemuse kommentaar / märkmed tulemuse parandamiseks"]
["Tulemusi oli eesmärgile lähedal. Proovin hoopis lõuna ajal helistada."]

{"sheet":"Q2 võrguleping","index":5,"n_rows":20,"n_cols":6,"rows_kept":20,"merged":[[0,0,0,3],[2,0,2,3],[4,0,4,3],[14,5,17,5],[18,0,18,3]]}
["Võrgu laiendamise plaan"]
["Juhised"]
["Kirjutage, kuidas kavatsete oma võrku selles kvartalis laiendada (nt teha rohkem telefonikõnesid, reisida rohkem jne). Iga kord, kui saate uue kontakti, muutke tegelike loodud kontaktide arvu, et hoida silma peal ja vaadata, kui lähedal te oma eesmärgi saavutamisele olete."]
[]
["Kuidas kavatsen oma võrku selles kvartalis laiendada?"]
["1. Teen rohkem telefonikõnesid"]
["2. Reisin rohkem"]
[]
[]
[]
[]
[]
[]
["Kontaktide eesmärk kvartalis","Tähtaeg","Tegelik kvartalis loodud kontaktide arv","Tulemused"]
[20,{"$f":"TODAY()","v":"2021-07-12"},12,{"$f":"IF(tblGoals3[[#This Row],[Kontaktide eesmärk kvartalis]]>0,tblGoals3[[#This Row],[Tegelik kvartalis loodud kontaktide arv]]/tblGoals3[[#This Row],[Kontaktide eesmärk kvartalis]],\"\")","v":{"v":0.6,"d":"60%"}},null,"0–25%\n26–50%\n51–75%\n76–100%\n\nVärv muutub vastavalt saavutatud protsendile"]
[{"$nulls":3},{"$f":"IF(tblGoals3[[#This Row],[Kontaktide eesmärk kvartalis]]>0,tblGoals3[[#This Row],[Tegelik kvartalis loodud kontaktide arv]]/tblGoals3[[#This Row],[Kontaktide eesmärk kvartalis]],\"\")","v":""}]
[{"$nulls":3},{"$f":"IF(tblGoals3[[#This Row],[Kontaktide eesmärk kvartalis]]>0,tblGoals3[[#This Row],[Tegelik kvartalis loodud kontaktide arv]]/tblGoals3[[#This Row],[Kontaktide eesmärk kvartalis]],\"\")","v":""}]
[]
["Tulemuse kommentaar / märkmed tulemuse parandamiseks"]
["Tulemusi oli eesmärgile lähedal. Proovin hoopis lõuna ajal helistada."]

{"sheet":"Q3 võrguleping","index":6,"n_rows":20,"n_cols":6,"rows_kept":20,"merged":[[0,0,0,3],[2,0,2,3],[4,0,4,3],[14,5,17,5],[18,0,18,3]]}
["Võrgu laiendamise plaan"]
["Juhised"]
["Kirjutage, kuidas kavatsete oma võrku selles kvartalis laiendada (nt teha rohkem telefonikõnesid, reisida rohkem jne). Iga kord, kui saate uue kontakti, muutke tegelike loodud kontaktide arvu, et hoida silma peal ja vaadata, kui lähedal te oma eesmärgi saavutamisele olete."]
[]
["Kuidas kavatsen oma võrku selles kvartalis laiendada?"]
["1. Teen rohkem telefonikõnesid"]
["2. Reisin rohkem"]
[]
[]
[]
[]
[]
[]
["Kontaktide eesmärk kvartalis","Tähtaeg","Tegelik kvartalis loodud kontaktide arv","Tulemused"]
[20,{"$f":"TODAY()","v":"2021-07-12"},12,{"$f":"IF(tblGoals34[[#This Row],[Kontaktide eesmärk kvartalis]]>0,tblGoals34[[#This Row],[Tegelik kvartalis loodud kontaktide arv]]/tblGoals34[[#This Row],[Kontaktide eesmärk kvartalis]],\"\")","v":{"v":0.6,"d":"60%"}},null,"0–25%\n26–50%\n51–75%\n76–100%\n\nVärv muutub vastavalt saavutatud protsendile"]
[{"$nulls":3},{"$f":"IF(tblGoals34[[#This Row],[Kontaktide eesmärk kvartalis]]>0,tblGoals34[[#This Row],[Tegelik kvartalis loodud kontaktide arv]]/tblGoals34[[#This Row],[Kontaktide eesmärk kvartalis]],\"\")","v":""}]
[{"$nulls":3},{"$f":"IF(tblGoals34[[#This Row],[Kontaktide eesmärk kvartalis]]>0,tblGoals34[[#This Row],[Tegelik kvartalis loodud kontaktide arv]]/tblGoals34[[#This Row],[Kontaktide eesmärk kvartalis]],\"\")","v":""}]
[]
["Tulemuse kommentaar / märkmed tulemuse parandamiseks"]
["Tulemusi oli eesmärgile lähedal. Proovin hoopis lõuna ajal helistada."]

{"sheet":"Q4 võrguleping","index":7,"n_rows":20,"n_cols":6,"rows_kept":20,"merged":[[0,0,0,3],[2,0,2,3],[4,0,4,3],[14,5,17,5],[18,0,18,3]]}
["Võrgu laiendamise plaan"]
["Juhised"]
["Kirjutage, kuidas kavatsete oma võrku selles kvartalis laiendada (nt teha rohkem telefonikõnesid, reisida rohkem jne). Iga kord, kui saate uue kontakti, muutke tegelike loodud kontaktide arvu, et hoida silma peal ja vaadata, kui lähedal te oma eesmärgi saavutamisele olete."]
[]
["Kuidas kavatsen oma võrku selles kvartalis laiendada?"]
["1. Teen rohkem telefonikõnesid"]
["2. Reisin rohkem"]
[]
[]
[]
[]
[]
[]
["Kontaktide eesmärk kvartalis","Tähtaeg","Tegelik kvartalis loodud kontaktide arv","Tulemused"]
[20,{"$f":"TODAY()","v":"2021-07-12"},12,{"$f":"IF(tblGoals348[[#This Row],[Kontaktide eesmärk kvartalis]]>0,tblGoals348[[#This Row],[Tegelik kvartalis loodud kontaktide arv]]/tblGoals348[[#This Row],[Kontaktide eesmärk kvartalis]],\"\")","v":{"v":0.6,"d":"60%"}},null,"0–25%\n26–50%\n51–75%\n76–100%\n\nVärv muutub vastavalt saavutatud protsendile"]
[{"$nulls":3},{"$f":"IF(tblGoals348[[#This Row],[Kontaktide eesmärk kvartalis]]>0,tblGoals348[[#This Row],[Tegelik kvartalis loodud kontaktide arv]]/tblGoals348[[#This Row],[Kontaktide eesmärk kvartalis]],\"\")","v":""}]
[{"$nulls":3},{"$f":"IF(tblGoals348[[#This Row],[Kontaktide eesmärk kvartalis]]>0,tblGoals348[[#This Row],[Tegelik kvartalis loodud kontaktide arv]]/tblGoals348[[#This Row],[Kontaktide eesmärk kvartalis]],\"\")","v":""}]
[]
["Tulemuse kommentaar / märkmed tulemuse parandamiseks"]
["Tulemusi oli eesmärgile lähedal. Proovin hoopis lõuna ajal helistada."]